fUST/lending_fUST_20250615
["ID","MTS","AMOUNT","RATE_DAILY","PERIOD"]
[365851150,1749958240728,-460.0,0.00021917,4]
[365851152,1749958240738,-460.0,0.00021917,4]
[365851154,1749958240747,-187.21343423,0.00021917,4]
[365851156,1749958240757,-460.0,0.00021917,4]
[365851158,1749958240767,-460.0,0.00021917,4]
[365851160,1749958240776,-460.0,0.00021917,4]
[365851162,1749958240786,-654.26,0.00021917,4]
[365851164,1749958240795,-460.0,0.00021917,4]
[365851166,1749958240805,-460.0,0.00021917,4]
[365851168,1749958240815,-460.0,0.00021917,4]
[365851170,1749958240825,-460.0,0.00021917,4]
[365851172,1749958240834,-412.65734642,0.00021917,4]
[365851174,1749958240843,-166.50332855,0.00021917,4]
[365851177,1749958240853,-401.52155716,0.00021917,4]
[365851179,1749958240862,-4054.9,0.00021917,4]
[365851181,1749958240872,-460.0,0.00021917,4]
[365851183,1749958240881,-2603.06,0.00021917,4]
[365851185,1749958240891,-460.0,0.00021917,4]
[365851187,1749958240900,-460.0,0.00021917,4]
[365851189,1749958240910,-460.0,0.00021917,4]
[365851191,1749958240920,-460.0,0.00021917,4]
[365851193,1749958240929,-469.50841057,0.00021917,4]
[365851195,1749958240941,-638.49,0.00021917,4]
[365851197,1749958240950,-524.64,0.00021917,2]
[365851199,1749958240960,-404.22975578,0.00021917,4]
[365851201,1749958240969,-460.0,0.00021917,4]
[365851203,1749958240978,-460.0,0.00021917,4]
[365851205,1749958240988,-460.0,0.00021917,4]
[365851207,1749958240998,-561.12,0.00021917,4]
[365851209,1749958241008,-460.0,0.00021917,4]
[365851211,1749958241019,-495.1731291,0.00021917,4]
[365851213,1749958241029,-460.0,0.00021917,4]
[365851215,1749958241038,-3229.77,0.00021917,4]
[365851218,1749958241048,-474.04,0.00021917,4]
[365851220,1749958241057,-460.0,0.00021917,4]
[365851221,1749958241066,-1426.8,0.00021917,4]
[365851224,1749958241076,-440.0,0.00021917,4]
[365851225,1749958241086,-752.71,0.00021917,4]
[365851228,1749958241095,-460.0,0.00021917,4]
[365851230,1749958241105,-460.0,0.00021917,4]
[365851232,1749958241114,-460.0,0.00021917,4]
[365851234,1749958241123,-460.0,0.00021917,4]
[365851236,1749958241133,-1451.01,0.00021917,4]
[365851238,1749958241142,-402.56672422,0.00021917,4]
[365851240,1749958241152,-253.054102,0.00021917,4]
[365851242,1749958241161,-460.0,0.00021917,4]
[365851244,1749958241170,-460.0,0.00021917,4]
[365851246,1749958241180,-440.0,0.00021917,4]
[365851248,1749958241189,-3617.63,0.00021917,4]
[365851250,1749958241199,-371.18444022,0.00021917,4]
[365851252,1749958241207,-460.0,0.00021917,4]
[365851254,1749958241216,-460.0,0.00021917,4]
[365851256,1749958241226,-460.0,0.00021917,4]
[365851258,1749958241235,-460.0,0.00021917,4]
[365851260,1749958241244,-457.83825876,0.00021917,4]
[365851262,1749958241254,-1623.82,0.00021917,4]
[365851264,1749958241263,-460.0,0.00021917,4]
[365851266,1749958241273,-460.0,0.00021917,4]
[365851268,1749958241282,-475.58,0.00021917,4]
[365851270,1749958241292,-440.0,0.00021917,4]
[365851272,1749958241302,-644.76,0.00021917,4]
[365851274,1749958241314,-548.79,0.00021917,4]
[365851276,1749958241324,-402.53591125,0.00021917,4]
[365851278,1749958241334,-479.45,0.00021917,4]
[365851280,1749958241343,-460.0,0.00021917,4]
[365851283,1749958241353,-460.0,0.00021917,4]
[365851284,1749958241362,-439.25751693,0.00021917,4]
[365851287,1749958241373,-482.49,0.00021917,4]
[365851289,1749958241382,-826.52,0.00021917,4]
[365851291,1749958241392,-460.0,0.00021917,4]
[365851293,1749958241401,-460.0,0.00021917,4]
[365851294,1749958241410,-1049.47,0.00021917,4]
[365851296,1749958241420,-1658.41,0.00021917,4]
[365851298,1749958241429,-460.0,0.00021917,4]
[365851300,1749958241439,-460.0,0.00021917,4]
[365851302,1749958241448,-460.0,0.00021917,4]
[365851304,1749958241457,-460.0,0.00021917,4]
[365851306,1749958241467,-639.67,0.00021917,4]
[365851308,1749958241476,-386.59827541,0.00021917,4]
[365851310,1749958241486,-282.85601397,0.00021917,4]
[365851312,1749958241496,-460.0,0.00021917,4]
[365851314,1749958241505,-473.23,0.00021917,4]
[365851316,1749958241514,-469.56,0.00021917,4]
[365851318,1749958241523,-460.0,0.00021917,4]
[365851320,1749958241532,-460.0,0.00021917,4]
[365851322,1749958241542,-460.0,0.00021917,4]
[365851324,1749958241551,-332.55719936,0.00021917,4]
[365851327,1749958241561,-460.0,0.00021917,4]
[365851329,1749958241570,-378.82161306,0.00021917,4]
[365851331,1749958241579,-460.0,0.00021917,4]
[365851333,1749958241588,-265.06262506,0.00021917,4]
[365851335,1749958241598,-529.32,0.00021917,4]
[365851337,1749958241607,-460.0,0.00021917,4]
[365851339,1749958241617,-460.0,0.00021917,4]
[365851341,1749958241626,-460.0,0.00021917,4]
[365851343,1749958241635,-433.63372336,0.00021917,4]
[365851345,1749958241645,-512.59,0.00021917,4]
[365851347,1749958241654,-460.0,0.00021917,4]
[365851349,1749958241663,-391.36358926,0.00021917,4]
[365851351,1749958241672,-1645.53,0.00021917,4]
[365851353,1749958241681,-460.0,0.00021917,4]
[365851355,1749958241691,-497.11,0.00021917,4]
[365851357,1749958241701,-759.93,0.00021917,4]
[365851359,1749958241710,-739.48,0.00021917,4]
[365851361,1749958241719,-460.0,0.00021917,4]
[365851363,1749958241728,-460.0,0.00021917,4]
[365851365,1749958241737,-373.01440554,0.00021917,4]
[365851367,1749958241747,-460.0,0.00021917,4]
[365851369,1749958241756,-503.04,0.00021917,4]
[365851371,1749958241765,-460.0,0.00021917,4]
[365851373,1749958241774,-2537.56,0.00021917,4]
[365851375,1749958241783,-462.19905113,0.00021917,4]
[365851377,1749958241793,-460.0,0.00021917,4]
[365851379,1749958241803,-445.7589411,0.00021917,4]
[365851381,1749958241812,-582.52,0.00021917,4]
[365851383,1749958241822,-460.0,0.00021917,4]
[365851385,1749958241831,-460.0,0.00021917,4]
[365851387,1749958241841,-460.0,0.00021917,4]
[365851389,1749958241850,-460.0,0.00021917,4]
[365851391,1749958241859,-460.0,0.00021917,4]
[365851393,1749958241868,-460.0,0.00021917,4]
[365851395,1749958241877,-453.5303612,0.00021917,4]
[365851397,1749958241887,-256.78822288,0.00021917,4]
[365851399,1749958241896,-1704.62,0.00021917,4]
[365851401,1749958241905,-514.0068478,0.00021917,4]
[365851403,1749958241914,-460.0,0.00021917,4]
[365851405,1749958241923,-460.0,0.00021917,4]
[365851407,1749958241932,-460.96160819,0.00021917,4]
[365851409,1749958241941,-492.07,0.00021917,4]
[365851411,1749958241950,-460.0,0.00021917,4]
[365851413,1749958241959,-460.0,0.00021917,4]
[365851415,1749958241968,-261.93447875,0.00021917,4]
[365851417,1749958241978,-661.35,0.00021917,4]
[365851419,1749958241987,-460.0,0.00021917,4]
[365851421,1749958241996,-460.0,0.00021917,4]
[365851423,1749958242005,-460.0,0.00021917,4]
[365851425,1749958242017,-462.22815629,0.00021917,4]
[365851427,1749958242026,-1924.96,0.00021917,4]
[365851429,1749958242035,-460.0,0.00021917,4]
[365851431,1749958242045,-290.4522227,0.00021917,4]
[365851433,1749958242055,-482.85335105,0.00021917,4]
[365851436,1749958242065,-2024.15,0.00021917,4]
[365851438,1749958242075,-460.0,0.00021917,4]
[365851440,1749958242084,-2655.25,0.00021917,4]
[365851442,1749958242093,-462.34120084,0.00021917,4]
[365851444,1749958242103,-446.72075874,0.00021917,4]
[365851446,1749958242112,-460.0,0.00021917,4]
[365851447,1749958242121,-3807.05,0.00021917,4]
[365851450,1749958242131,-500.0,0.00021973,2]
[365851451,1749958242141,-500.0,0.00021973,2]
[365851454,1749958242151,-500.0,0.00021973,2]
[365851456,1749958242160,-500.0,0.00021973,2]
[365851458,1749958242170,-151.0,0.00021999,4]
[365851476,1749958242332,-76133.2,0.00022,7]
[365851478,1749958242342,-64334.48629548,0.00022,2]
[365851480,1749958242351,-151.0,0.00022026,4]
[365851482,1749958242361,-198.0,0.00022054,4]
[365851484,1749958242370,-206.3155905,0.00022167,6]
[365851486,1749958242380,-158.51262344,0.00022173,2]
[365851488,1749958242389,-304.26549004,0.00022173,2]
[365851490,1749958242398,-500.0,0.00022173,2]
[365851492,1749958242408,-500.0,0.00022173,2]
[365851494,1749958242418,-505.96851198,0.00022173,2]
[365851496,1749958242427,-500.0,0.0002219,2]
[365851498,1749958242436,-160.0,0.0002219,2]
[365851500,1749958242445,-500.0,0.00022191,2]
[365851502,1749958242454,-596.53017069,0.00022191,2]
[365851504,1749958242463,-460.0,0.00022191,4]
[365851506,1749958242473,-250.0,0.00022191,4]
[365851508,1749958242482,-460.0,0.00022191,4]
[365851510,1749958242491,-340.0,0.00022191,4]
[365851512,1749958242501,-464.87900277,0.00022191,4]
[365851514,1749958242510,-460.0,0.00022191,4]
[365851516,1749958242519,-460.0,0.00022191,4]
[365851518,1749958242528,-360.0,0.00022191,4]
[365851520,1749958242538,-460.0,0.00022191,4]
[365851522,1749958242547,-150.35822956,0.00022191,4]
[365851524,1749958242556,-460.0,0.00022191,4]
[365851526,1749958242566,-460.0,0.00022191,4]
[365851528,1749958242575,-460.0,0.00022191,4]
[365851530,1749958242586,-290.44680936,0.00022191,4]
[365851532,1749958242596,-460.0,0.00022191,4]
[365851534,1749958242605,-460.0,0.00022191,4]
[365851535,1749958242614,-460.0,0.00022191,4]
[365851536,1749958242623,-214.97288861,0.00022191,4]
[365851537,1749958242632,-460.0,0.00022191,4]
[365851538,1749958242642,-460.0,0.00022191,4]
[365851539,1749958242651,-460.0,0.00022191,4]
[365851540,1749958242660,-460.0,0.00022191,4]
[365851541,1749958242670,-460.0,0.00022191,4]
[365851542,1749958242681,-390.80647678,0.00022191,4]
[365851543,1749958242690,-335.74641294,0.00022191,4]
[365851544,1749958242699,-411.13563649,0.00022191,4]
[365851545,1749958242709,-460.0,0.00022191,4]
[365851546,1749958242718,-451.62191499,0.00022191,4]
[365851547,1749958242727,-460.0,0.00022191,4]
[365851548,1749958242736,-391.23316417,0.00022191,4]
[365851550,1749958242746,-460.0,0.00022191,4]
[365851552,1749958242755,-579.74468648,0.00022191,4]
[365851554,1749958242765,-460.0,0.00022191,4]
[365851556,1749958242774,-460.0,0.00022191,4]
[365851558,1749958242783,-326.71,0.00022191,4]
[365851559,1749958242792,-460.0,0.00022191,4]
[365851560,1749958242801,-460.0,0.00022191,4]
[365851561,1749958242810,-460.0,0.00022191,4]
[365851562,1749958242819,-460.0,0.00022191,4]
[365851564,1749958242828,-430.0,0.00022191,4]
[365851566,1749958242838,-460.0,0.00022191,4]
[365851567,1749958242847,-460.0,0.00022191,4]
[365851568,1749958242856,-460.0,0.00022191,4]
[365851569,1749958242865,-370.0,0.00022191,4]
[365851570,1749958242874,-460.0,0.00022191,4]
[365851571,1749958242883,-460.0,0.00022191,4]
[365851572,1749958242892,-430.0,0.00022191,4]
[365851573,1749958242901,-460.0,0.00022191,4]
[365851574,1749958242910,-460.0,0.00022191,4]
[365851575,1749958242919,-460.0,0.00022191,4]
[365851576,1749958242928,-495.49887423,0.00022191,4]
[365851577,1749958242937,-485.37,0.00022191,4]
[365851578,1749958242946,-367.5006184,0.00022191,4]
[365851579,1749958242955,-435.03460497,0.00022191,4]
[365851580,1749958242965,-460.0,0.00022191,4]
[365851581,1749958242974,-460.0,0.00022191,4]
[365851582,1749958242983,-460.0,0.00022191,4]
[365851583,1749958242993,-460.0,0.00022191,4]
[365851584,1749958243002,-393.40361519,0.00022191,4]
[365851585,1749958243015,-460.0,0.00022191,4]
[365851586,1749958243024,-460.0,0.00022191,4]
[365851587,1749958243034,-433.46688363,0.00022191,4]
[365851588,1749958243043,-460.0,0.00022191,4]
[365851589,1749958243052,-616.02,0.00022191,4]
[365851590,1749958243062,-638.41,0.00022191,4]
[365851591,1749958243071,-460.0,0.00022191,4]
[365851592,1749958243081,-460.0,0.00022191,4]
[365851593,1749958243090,-954.59,0.00022191,4]
[365851594,1749958243100,-460.0,0.00022191,4]
[365851595,1749958243109,-460.0,0.00022191,4]
[365851596,1749958243118,-453.76425296,0.00022191,4]
[365851597,1749958243127,-460.0,0.00022191,4]
[365851598,1749958243137,-460.0,0.00022191,4]
[365851599,1749958243146,-300.63349889,0.00022191,4]
[365851600,1749958243156,-467.65048428,0.00022191,4]
[365851601,1749958243165,-460.0,0.00022191,4]
[365851602,1749958243175,-403.75576383,0.00022191,4]
[365851603,1749958243184,-503.19527479,0.00022191,4]
[365851604,1749958243194,-460.0,0.00022191,4]
[365851605,1749958243203,-460.0,0.00022191,4]
[365851606,1749958243213,-460.0,0.00022191,4]
[365851607,1749958243222,-616.44,0.00022191,4]
[365851608,1749958243232,-460.0,0.00022191,4]
[365851609,1749958243242,-460.0,0.00022191,4]
[365851610,1749958243251,-688.28,0.00022191,4]
[365851611,1749958243261,-749.99,0.00022191,4]
[365851612,1749958243270,-886.06,0.00022191,4]
[365851613,1749958243280,-378.1086224,0.00022191,4]
[365851614,1749958243290,-460.0,0.00022191,4]
[365851615,1749958243299,-440.0,0.00022191,4]
[365851616,1749958243309,-460.0,0.00022191,4]
[365851617,1749958243319,-460.0,0.00022191,4]
[365851618,1749958243328,-596.71780289,0.00022191,4]
[365851619,1749958243337,-460.0,0.00022191,4]
[365851620,1749958243346,-431.44654738,0.00022191,4]
[365851621,1749958243356,-460.0,0.00022191,4]
[365851622,1749958243366,-405.08251545,0.00022191,4]
[365851623,1749958243376,-440.0,0.00022191,4]
[365851624,1749958243386,-460.0,0.00022191,4]
[365851625,1749958243395,-460.0,0.00022191,4]
[365851626,1749958243405,-460.0,0.00022191,4]
[365851627,1749958243415,-460.0,0.00022191,4]
[365851628,1749958243424,-403.81274075,0.00022191,4]
[365851629,1749958243433,-654.26,0.00022191,4]
[365851630,1749958243443,-460.0,0.00022191,4]
[365851631,1749958243452,-460.0,0.00022191,4]
[365851632,1749958243462,-400.0,0.00022191,4]
[365851633,1749958243471,-460.0,0.00022191,4]
[365851634,1749958243480,-4054.9,0.00022191,4]
[365851635,1749958243490,-460.0,0.00022191,4]
[365851636,1749958243500,-409.68130432,0.00022191,4]
[365851637,1749958243510,-2603.06,0.00022191,4]
[365851638,1749958243519,-460.0,0.00022191,4]
[365851639,1749958243529,-460.0,0.00022191,4]
[365851640,1749958243538,-460.0,0.00022191,4]
[365851641,1749958243547,-638.49,0.00022191,4]
[365851642,1749958243556,-524.64,0.00022191,2]
[365851643,1749958243566,-460.0,0.00022191,4]
[365851644,1749958243575,-393.07095062,0.00022191,4]
[365851645,1749958243585,-335.49264796,0.00022191,4]
[365851646,1749958243594,-561.12,0.00022191,4]
[365851647,1749958243604,-460.0,0.00022191,4]
[365851648,1749958243614,-460.0,0.00022191,4]
[365851649,1749958243623,-3229.77,0.00022191,4]
[365851650,1749958243633,-474.04,0.00022191,4]
[365851651,1749958243643,-410.0,0.00022191,4]
[365851652,1749958243652,-1426.8,0.00022191,4]
[365851653,1749958243662,-752.71,0.00022191,4]
[365851654,1749958243671,-460.0,0.00022191,4]
[365851655,1749958243681,-445.01658594,0.00022191,4]
[365851656,1749958243691,-595.04216686,0.00022191,4]
[365851657,1749958243700,-1451.01,0.00022191,4]
[365851658,1749958243709,-460.0,0.00022191,4]
[365851659,1749958243719,-460.0,0.00022191,4]
[365851660,1749958243728,-3617.63,0.00022191,4]
[365851661,1749958243738,-460.0,0.00022191,4]
[365851662,1749958243747,-460.0,0.00022191,4]
[365851663,1749958243756,-460.0,0.00022191,4]
[365851664,1749958243766,-460.0,0.00022191,4]
[365851665,1749958243775,-1623.82,0.00022191,4]
[365851666,1749958243785,-460.0,0.00022191,4]
[365851667,1749958243795,-475.58,0.00022191,4]
[365851668,1749958243805,-644.76,0.00022191,4]
[365851669,1749958243814,-548.79,0.00022191,4]
[365851670,1749958243823,-479.45,0.00022191,4]
[365851671,1749958243833,-460.0,0.00022191,4]
[365851672,1749958243842,-460.0,0.00022191,4]
[365851674,1749958243851,-482.49,0.00022191,4]
[365851676,1749958243861,-826.52,0.00022191,4]
[365851678,1749958243870,-460.0,0.00022191,4]
[365851680,1749958243879,-439.18753643,0.00022191,4]
[365851682,1749958243889,-1049.47,0.00022191,4]
[365851684,1749958243898,-1658.41,0.00022191,4]
[365851686,1749958243907,-460.0,0.00022191,4]
[365851688,1749958243916,-460.0,0.00022191,4]
[365851690,1749958243926,-460.0,0.00022191,4]
[365851692,1749958243935,-460.0,0.00022191,4]
[365851694,1749958243945,-639.67,0.00022191,4]
[365851696,1749958243954,-460.0,0.00022191,4]
[365851698,1749958243964,-473.23,0.00022191,4]
[365851700,1749958243973,-469.56,0.00022191,4]
[365851702,1749958243983,-430.14055849,0.00022191,4]
[365851704,1749958243992,-460.0,0.00022191,4]
[365851706,1749958244002,-460.0,0.00022191,4]
[365851708,1749958244011,-405.59360489,0.00022191,4]
[365851710,1749958244021,-402.96553521,0.00022191,4]
[365851712,1749958244038,-529.32,0.00022191,4]
[365851714,1749958244048,-195.93703994,0.00022191,4]
[365851716,1749958244058,-460.0,0.00022191,4]
[365851718,1749958244067,-460.0,0.00022191,4]
[365851720,1749958244076,-512.59,0.00022191,4]
[365851722,1749958244085,-1645.53,0.00022191,4]
[365851724,1749958244095,-497.11,0.00022191,4]
[365851726,1749958244104,-759.93,0.00022191,4]
[365851728,1749958244116,-739.48,0.00022191,4]
[365851730,1749958244126,-460.0,0.00022191,4]
[365851732,1749958244136,-503.04,0.00022191,4]
[365851734,1749958244145,-460.0,0.00022191,4]
[365851736,1749958244155,-2537.56,0.00022191,4]
[365851738,1749958244168,-582.52,0.00022191,4]
[365851739,1749958244177,-460.0,0.00022191,4]
[365851742,1749958244187,-242.07196316,0.00022191,4]
[365851744,1749958244196,-355.98378349,0.00022191,4]
[365851745,1749958244206,-460.0,0.00022191,4]
[365851748,1749958244216,-460.0,0.00022191,4]
[365851750,1749958244226,-460.0,0.00022191,4]
[365851752,1749958244235,-1704.62,0.00022191,4]
[365851753,1749958244244,-378.0002133,0.00022191,4]
[365851755,1749958244254,-460.0,0.00022191,4]
[365851758,1749958244263,-492.07,0.00022191,4]
[365851759,1749958244273,-460.0,0.00022191,4]
[365851762,1749958244282,-460.0,0.00022191,4]
[365851764,1749958244292,-460.0,0.00022191,4]
[365851765,1749958244301,-661.35,0.00022191,4]
[365851768,1749958244311,-460.0,0.00022191,4]
[365851769,1749958244321,-460.0,0.00022191,4]
[365851771,1749958244330,-1924.96,0.00022191,4]
[365851774,1749958244340,-2024.15,0.00022191,4]
[365851775,1749958244349,-460.0,0.00022191,4]
[365851778,1749958244359,-2655.25,0.00022191,4]
[365851779,1749958244368,-460.0,0.00022191,4]
[365851781,1749958244378,-3807.05,0.00022191,4]
[365851784,1749958244389,-168.0,0.00022221,2]
[365851786,1749958244399,-224.19273538,0.00022222,2]
[365851787,1749958244409,-213.32089821,0.00022223,2]
[365851788,1749958244419,-229.86375354,0.00022238,2]
[365851789,1749958244430,-500.0,0.0002225,2]
[365851790,1749958244439,-197.42635491,0.00022258,2]
[365851791,1749958244449,-756.46,0.00022266,7]
[365851792,1749958244459,-207.4,0.00022284,2]
[365851793,1749958244468,-1688.0,0.00022284,2]
[365851794,1749958244478,-151.0,0.00022284,2]
[365851795,1749958244488,-151.0,0.00022284,2]
[365851796,1749958244497,-151.0,0.00022284,2]
[365851797,1749958244506,-151.0,0.00022284,2]
[365851799,1749958244516,-151.0,0.00022284,2]
[365851800,1749958244525,-258.210803,0.00022284,2]
[365851801,1749958244535,-1750.456,0.00022339,2]
[365851802,1749958244545,-756.46,0.00022366,6]
[365851803,1749958244554,-173.02478112,0.00022394,2]
[365851804,1749958244564,-168.0,0.00022407,2]
[365851805,1749958244574,-168.0,0.0002242,2]
[365851806,1749958244584,-206.3155905,0.00022433,7]
[365851807,1749958244594,-314.05432075,0.00022465,4]
[365851809,1749958244603,-460.0,0.00022465,4]
[365851811,1749958244612,-276.09947411,0.00022465,4]
[365851812,1749958244621,-460.0,0.00022465,4]
[365851813,1749958244630,-440.0,0.00022465,4]
[365851814,1749958244639,-460.0,0.00022465,4]
[365851815,1749958244649,-276.6361336,0.00022465,4]
[365851816,1749958244658,-440.0,0.00022465,4]
[365851817,1749958244667,-460.0,0.00022465,4]
[365851818,1749958244677,-457.01837885,0.00022465,4]
[365851819,1749958244686,-460.0,0.00022465,4]
[365851820,1749958244695,-460.0,0.00022465,4]
[365851821,1749958244704,-460.0,0.00022465,4]
[365851822,1749958244713,-460.0,0.00022465,4]
[365851823,1749958244723,-460.0,0.00022465,4]
[365851824,1749958244732,-460.0,0.00022465,4]
[365851825,1749958244743,-460.0,0.00022465,4]
[365851826,1749958244753,-400.70451454,0.00022465,4]
[365851827,1749958244762,-451.05341154,0.00022465,4]
[365851828,1749958244771,-460.0,0.00022465,4]
[365851829,1749958244781,-353.23047862,0.00022465,4]
[365851830,1749958244791,-460.0,0.00022465,4]
[365851831,1749958244800,-263.11956598,0.00022465,4]
[365851832,1749958244810,-460.0,0.00022465,4]
[365851833,1749958244819,-460.0,0.00022465,4]
[365851834,1749958244828,-460.0,0.00022465,4]
[365851835,1749958244838,-185.0265787,0.00022465,4]
[365851836,1749958244847,-430.0,0.00022465,4]
[365851837,1749958244857,-460.0,0.00022465,4]
[365851838,1749958244866,-460.0,0.00022465,4]
[365851839,1749958244875,-460.0,0.00022465,4]
[365851840,1749958244884,-460.0,0.00022465,4]
[365851841,1749958244894,-460.0,0.00022465,4]
[365851842,1749958244903,-460.0,0.00022465,4]
[365851843,1749958244912,-616.02,0.00022465,4]
[365851844,1749958244923,-638.41,0.00022465,4]
[365851845,1749958244931,-460.0,0.00022465,4]
[365851846,1749958244941,-954.59,0.00022465,4]
[365851847,1749958244950,-460.0,0.00022465,4]
[365851848,1749958244960,-460.0,0.00022465,4]
[365851849,1749958244971,-460.0,0.00022465,4]
[365851850,1749958244981,-374.11644082,0.00022465,4]
[365851851,1749958244990,-460.0,0.00022465,4]
[365851852,1749958245000,-419.97283349,0.00022465,4]
[365851853,1749958245009,-529.10135825,0.00022465,4]
[365851854,1749958245019,-616.44,0.00022465,4]
[365851855,1749958245033,-440.0,0.00022465,4]
[365851856,1749958245042,-688.28,0.00022465,4]
[365851857,1749958245052,-749.99,0.00022465,4]
[365851858,1749958245061,-886.06,0.00022465,4]
[365851859,1749958245071,-460.0,0.00022465,4]
[365851860,1749958245080,-460.0,0.00022465,4]
[365851861,1749958245090,-460.0,0.00022465,4]
[365851862,1749958245099,-460.0,0.00022465,4]
[365851863,1749958245108,-460.0,0.00022465,4]
[365851864,1749958245118,-460.0,0.00022465,4]
[365851865,1749958245128,-460.0,0.00022465,4]
[365851866,1749958245137,-423.0909058,0.00022465,4]
[365851867,1749958245147,-654.26,0.00022465,4]
[365851868,1749958245156,-460.0,0.00022465,4]
[365851869,1749958245166,-460.0,0.00022465,4]
[365851870,1749958245175,-460.0,0.00022465,4]
[365851871,1749958245184,-4054.9,0.00022465,4]
[365851872,1749958245195,-460.0,0.00022465,4]
[365851873,1749958245205,-2603.06,0.00022465,4]
[365851874,1749958245214,-460.0,0.00022465,4]
[365851875,1749958245224,-354.70169075,0.00022465,4]
[365851876,1749958245233,-460.0,0.00022465,4]
[365851877,1749958245243,-638.49,0.00022465,4]
[365851878,1749958245252,-524.64,0.00022465,2]
[365851879,1749958245261,-460.0,0.00022465,4]
[365851880,1749958245271,-561.12,0.00022465,4]
[365851881,1749958245281,-460.0,0.00022465,4]
[365851882,1749958245291,-460.0,0.00022465,4]
[365851883,1749958245300,-3229.77,0.00022465,4]
[365851884,1749958245310,-474.04,0.00022465,4]
[365851885,1749958245319,-1426.8,0.00022465,4]
[365851886,1749958245329,-752.71,0.00022465,4]
[365851887,1749958245339,-271.91339783,0.00022465,4]
[365851888,1749958245348,-1451.01,0.00022465,4]
[365851889,1749958245357,-460.0,0.00022465,4]
[365851890,1749958245366,-460.0,0.00022465,4]
[365851891,1749958245376,-3617.63,0.00022465,4]
[365851892,1749958245385,-460.0,0.00022465,4]
[365851893,1749958245396,-460.0,0.00022465,4]
[365851894,1749958245405,-460.0,0.00022465,4]
[365851895,1749958245415,-460.0,0.00022465,4]
[365851896,1749958245424,-1623.82,0.00022465,4]
[365851897,1749958245434,-460.0,0.00022465,4]
[365851898,1749958245554,-475.58,0.00022465,4]
[365851899,1749958245564,-644.76,0.00022465,4]
[365851900,1749958245574,-548.79,0.00022465,4]
[365851901,1749958245583,-479.45,0.00022465,4]
[365851902,1749958245592,-460.0,0.00022465,4]
[365851903,1749958245601,-407.83470848,0.00022465,4]
[365851904,1749958245610,-482.49,0.00022465,4]
[365851905,1749958245620,-826.52,0.00022465,4]
[365851906,1749958245629,-460.0,0.00022465,4]
[365851907,1749958245639,-1049.47,0.00022465,4]
[365851908,1749958245648,-1658.41,0.00022465,4]
[365851909,1749958245658,-460.0,0.00022465,4]
[365851910,1749958245667,-460.0,0.00022465,4]
[365851912,1749958245676,-460.0,0.00022465,4]
[365851914,1749958245686,-460.0,0.00022465,4]
[365851916,1749958245695,-639.67,0.00022465,4]
[365851917,1749958245704,-460.0,0.00022465,4]
[365851918,1749958245713,-473.23,0.00022465,4]
[365851921,1749958245723,-469.56,0.00022465,4]
[365851925,1749958245732,-460.0,0.00022465,4]
[365851928,1749958245741,-460.0,0.00022465,4]